Cogmind - Beta 16 @@@ ROGUE MODE // 2026.01.24 @ 14:23:45 Player: Artackni Result: Destroyed by 8G-1F2(j) with Overtuned Pulse Rifle Performance ------------- Evolutions (0) 0 Regions Visited (4) 800 Robots Destroyed (33) 165 Value Destroyed (905) 905 Prototype IDs (2) 40 Alien Tech Used (0) 0 Bonus (800) 800 TOTAL SCORE: 2710 Bonus ------- Registered with UFD 300 Met Optimus in HQ 500 Cogmind --------- Core Integrity 0/250 Matter 280/300 Energy 280/280 System Corruption 1% Temperature Cool (12) Movement Rolling (110) Ox2 Location -7/Scraptown Parts ------- > --- POWER (1) -------- Heavy Ion Engine > --- PROPULSION (2) --- Overtuned Titanium Leg Wheel > --- UTILITY (2) ------ Large Storage Unit > --- WEAPON (2) ------- Mini Grenade Launcher > --- INVENTORY (15) --- Heavy Ion Engine Improved Heat Sink Subdweller Optics Seismic Detector Makeshift Targeting Computer Makeshift Shrapnel Gun Mini Grenade Launcher Mini Grenade Launcher Improved Datajack CPS Tube (2) Mace Powered Hammer Makeshift Spear Peak State ------------ > --- POWER ------------ Heavy Ion Engine > --- PROPULSION ------- Wheel Wheel > --- UTILITY ---------- Large Storage Unit Hardened Medium Armor Plating > --- WEAPON ----------- Proton Cannon Makeshift Shrapnel Gun > --- INVENTORY -------- Heavy Ion Engine Heavy Ion Engine Wheel Improved Heat Sink Subdweller Optics Seismic Detector Makeshift Targeting Computer Makeshift Shrapnel Gun Mini Grenade Launcher Mini Grenade Launcher Mini Grenade Launcher Improved Datajack CPS Tube Mace Powered Hammer [Rating: 21] Favorites ----------- Power Heavy Ion Engine Engine Heavy Ion Engine Propulsion Wheel Leg Overtuned Titanium Leg Wheel Wheel Utility Large Storage Unit Device Seismic Detector Storage Large Storage Unit Protection Hardened Medium Armor Plating Weapon Improved Datajack Energy Gun Particle Gun Energy Cannon Proton Cannon Ballistic Gun Assault Rifle Launcher Mini Grenade Launcher Impact Weapon Mace Special Melee Weapon Improved Datajack Build | -11 -10 -10 -10 -7 ------- Run | Yrd Mat Min Sub Scr Slots Evolved . | . . . . . Power . | . . . . . Propulsion . | . . . . . Utility . | . . . . . Weapon . | . . . . . Parts Attached 25 | 7 4 4 2 8 Power 3 | 1 1 . . 1 Engine 3 | 1 1 . . 1 Core . | . . . . . Reactor . | . . . . . Propulsion 7 | 2 . 2 1 2 Treads . | . . . . . Leg 1 | . . . . 1 Wheel 6 | 2 . 2 1 1 Hover . | . . . . . Flight . | . . . . . Utility 4 | 2 1 . . 1 Device 1 | 1 . . . . Storage 2 | 1 1 . . . Processor . | . . . . . Hackware . | . . . . . Protection 1 | . . . . 1 Artifact . | . . . . . Weapon 11 | 2 2 2 1 4 Energy Gun 3 | 2 . 1 . . Energy Cannon 1 | . . . . 1 Ballistic Gun 4 | . 2 . 1 1 Ballistic Cannon . | . . . . . Launcher 1 | . . . . 1 Special Weapon . | . . . . . Impact Weapon 1 | . . 1 . . Slashing Weapon . | . . . . . Piercing Weapon . | . . . . . Special Melee Weapon 1 | . . . . 1 Unidentified Prototypes 1 | . 1 . . . Parts Lost 5 | . . . 1 4 Power . | . . . . . Propulsion 2 | . . . 1 1 Utility 1 | . . . . 1 Weapon 2 | . . . . 2 Highest Loss Streak 4 | . . . 1 4 To Critical Strikes . | . . . . . Average Backups 14 | 3 11 15 14 14 Power 1 | . 1 2 2 1 Propulsion 1 | 1 3 2 1 . Utility 3 | . 1 2 3 4 Weapon 6 | . 4 8 8 7 Tool/Special . | . . . . . Unused Backups 20 | . 4 1 1 14 Power 2 | . 1 . . 1 Propulsion 2 | . 1 1 . . Utility 5 | . . . 1 4 Weapon 10 | . 2 . . 8 Tool/Special 1 | . . . . 1 Average Slot Usage (%) 99 | . 100 100 99 98 Engine 13 | . 14 14 14 13 Wheel 27 | . 28 28 27 27 Device 13 | . 14 14 14 12 Storage 14 | . 14 14 14 14 Energy Gun 5 | . 9 11 14 2 Energy Cannon 7 | . . . . 10 Ballistic Gun 5 | . 18 16 14 . Special Melee Weapon 8 | . . . . 12 Peak Build Rating 21 | 7 11 13 12 21 Average Rating 15 | 5 8 11 11 17 On Entrance 8 | . 7 11 13 12 Avg Prop Armor Cover (%) . | . . . . . Naked Turns . | . . . . . Heaviest Build 46 | 11 33 34 34 46 Greatest Support 20 | 20 20 20 20 20 Greatest Overweight (x) 3 | . 1 1 1 3 Average Overweight (x) . | . . 1 1 1 Largest Inventory Capacity 15 | 8 15 15 15 15 Average Capacity 14 | 7 14 15 15 15 Most Carried 15 | 6 15 15 15 15 Average Carried 14 | 3 11 14 14 14 Final Capacity 15 | 8 15 15 15 15 Final Carried 15 | 6 15 15 15 13 Class Distribution -------------------- 75% | Mutant 24% | Scavenger-Mutant Dominant Class ---------------- Mutant | -10/Materials Mutant | -10/Mines Scavenger-Mutant | -10/Subcaves Mutant | -7/Scraptown Resources | -11 -10 -10 -10 -7 ----------- Run | Yrd Mat Min Sub Scr Matter Collected 752 | 270 76 97 43 266 Remotely . | . . . . . Salvage Created 1402 | 180 210 172 43 797 Parts 72 | 13 9 10 2 38 Haulers Intercepted 2 | . 2 . . . Recyclers Shooed . | . . . . . Parts Field Recycled . | . . . . . Retrieved Matter . | . . . . . Parts Self-Destructed 1 | . . . . 1 Prevented . | . . . . . Parts Restored . | . . . . . Kills | -11 -10 -10 -10 -7 ------- Run | Yrd Mat Min Sub Scr Combat Hostiles Destroyed 22 | . 1 3 1 17 Guns 6 | . 1 3 1 1 Cannons 4 | . . . . 4 AOE 12 | . . . . 12 Classes Destroyed 11 | 3 2 1 1 4 Worker 3 | 1 . 1 . 1 Builder 1 | . . 1 . . Tunneler 3 | 3 . . . . Hauler 2 | . 2 . . . Recycler 2 | 1 1 . . . Grunt 4 | . 1 3 . . Subdweller 1 | . . . 1 . Bolteater 2 | . . . . 2 Federalist 2 | . . . . 2 Explorer 7 | . . . . 7 Scrapper 6 | . . . . 6 Best Kill Streak 11 | 4 2 2 1 11 Combat Bots Only 11 | . 1 2 1 11 Max Kills in Single Turn 2 | 1 1 1 1 2 Gunslinging . | . . . . . Exploded 2 | . . . . 2 Melee . | . . . . . Uniques/NPCs Destroyed . | . . . . . Combat | -11 -10 -10 -10 -7 -------- Run | Yrd Mat Min Sub Scr Hostile Shots Fired 104 | . 5 26 9 64 Missed 34 | . 3 8 3 20 Hits 70 | . 2 18 6 44 Melee 13 | . . . . 13 Projectile 57 | . 2 18 6 31 Critical Strikes 2 | . . . . 2 Damage Taken 1151 | . 16 236 128 771 Core 257 | . 10 46 65 136 Absorbed by Shields . | . . . . . Core Remaining (%) 100 | 100 . . . . Volleys Fired 81 | 11 11 16 11 32 Largest 2 | 2 2 2 1 2 Hottest 99 | 80 80 85 20 99 Shots Fired 120 | 22 22 32 11 33 Gun 93 | 22 22 32 11 6 Cannon 12 | . . . . 12 Launcher 15 | . . . . 15 Special . | . . . . . Kinetic 55 | . 12 26 11 6 Thermal 38 | 22 10 6 . . Explosive 15 | . . . . 15 Electromagnetic 12 | . . . . 12 Robot Hit Streak 32 | 5 5 21 32 7 Robot Miss Streak 5 | 3 5 1 . 2 Penetration Max . | . . . . . Secondary Targets 1 | . . 1 . . Max Gunslinging Chain 1 | . . 1 . . Shots Hit Robots 117 | 11 11 26 11 58 Core Hits 60 | 6 7 10 3 34 Critical Kills . | . . . . . Critical Parts Destroyed . | . . . . . Critical Strikes . | . . . . . Melee Attacks 46 | . . 2 . 44 Impact 2 | . . 2 . . Slashing . | . . . . . Piercing . | . . . . . Sneak Attacks 38 | . . . . 38 Combat Hostiles . | . . . . . Follow-up Attacks . | . . . . . Damage Inflicted 2045 | 125 135 354 137 1294 Guns 879 | 125 135 354 137 128 Cannons 175 | . . . . 175 Explosions 991 | . . . . 991 Melee . | . . . . . Ramming . | . . . . . Kinetic 596 | . 68 263 137 128 Thermal 283 | 125 67 91 . . Explosive 991 | . . . . 991 Electromagnetic 175 | . . . . 175 Impact . | . . . . . Slashing . | . . . . . Piercing . | . . . . . Highest Corruption 1 | . . . . 1 Average Corruption 1 | . . . . 1 Corruption Purged . | . . . . . Corruption Blocked . | . . . . . Overload Shots . | . . . . . Overflow Damage 69 | . . . . 69 Projectiles 18 | . . . . 18 Explosions 51 | . . . . 51 Melee . | . . . . . Knockbacks . | . . . . . Impact . | . . . . . Kinetic . | . . . . . Secondary . | . . . . . Self-Inflicted Damage 167 | . . . . 167 Shots 4 | . . . . 4 Rammed . | . . . . . Targets Rammed . | . . . . . Kicked . | . . . . . Crushed . | . . . . . Highest Temperature 291 | 72 60 135 . 291 Average Temperature 88 | 33 29 38 . 136 Received Heat Transfer 470 | . 6 138 . 326 Siege Activations . | . . . . . Martial Activations . | . . . . . Shielding Activations . | . . . . . Robots Disrupted . | . . . . . Combat Hostiles . | . . . . . Robots Corrupted . | . . . . . Combat Hostiles . | . . . . . Parts Fried . | . . . . . Impact Corruptions . | . . . . . Robots Melted . | . . . . . Combat Hostiles . | . . . . . Parts Melted 3 | 1 . . . 2 Heat Transferred 647 | 275 150 222 . . Parts Sabotaged . | . . . . . Parts Stolen 2 | . . . . 2 Parts Stripped . | . . . . . Power Chain Reactions . | . . . . . Alert | -11 -10 -10 -10 -7 ------- Run | Yrd Mat Min Sub Scr Maximum Alert Level . | . . . . . Low Security (%) 100 | 100 100 100 . . Level 1 . | . . . . . Level 2 . | . . . . . Level 3 . | . . . . . Level 4 . | . . . . . Level 5 . | . . . . . High Security . | . . . . . Max Security . | . . . . . Peak Influence 50 | 10 30 50 . . Initial 3 | . 3 . . . Average 10 | 3 5 16 . . Influence Increases 200 | 25 49 121 . 5 Destroy 0b10 Robot/C 80 | . 20 60 . . Destroy 0b10 Robot/NC 55 | 25 15 10 . 5 Destroy Leader 34 | . 14 20 . . Destroy Structure 1 | . . 1 . . Partial Spotted 15 | . . 15 . . Lose Combat Pursuer 15 | . . 15 . . Influence Decreases 198 | 20 54 120 1 3 Entered New Map 3 | . 2 . 1 . Time Decay 195 | 20 52 120 . 3 Squads Dispatched 1 | . 1 . . . Investigation . | . . . . . Extermination . | . . . . . Reinforcement 1 | . 1 . . . Assault . | . . . . . Garrison . | . . . . . Intercept . | . . . . . Searches Triggered . | . . . . . Construction Impeded . | . . . . . Haulers Reinforced . | . . . . . Active Scanning Responses . | . . . . . Cargo Convoy Interrupts . | . . . . . Stealth | -11 -10 -10 -10 -7 --------- Run | Yrd Mat Min Sub Scr Distress Signals . | . . . . . Communications Jammed . | . . . . . Distress Signals . | . . . . . Times Spotted 39 | . 8 4 1 26 Peak Tracking Total 6 | . 4 2 1 6 Tactical Retreats 1 | . . 1 . . Traps | -11 -10 -10 -10 -7 ------- Run | Yrd Mat Min Sub Scr Traps Triggered . | . . . . . Indirectly . | . . . . . Trap Hack Attempts . | . . . . . Triggered . | . . . . . Disarmed . | . . . . . Reprogrammed . | . . . . . Reused . | . . . . . Traps Extracted . | . . . . . Installed . | . . . . . Triggered . | . . . . . Machines | -11 -10 -10 -10 -7 ---------- Run | Yrd Mat Min Sub Scr Machines Disabled 3 | . . . . 3 Max in Single Turn 2 | . . . . 2 Machines Repaired . | . . . . . Machines Dismantled . | . . . . . Machines Sabotaged . | . . . . . Overloaded Fab Kills . | . . . . . Hacking | -11 -10 -10 -10 -7 --------- Run | Yrd Mat Min Sub Scr Machines Accessed 2 | . 1 . . 1 Terminals . | . . . . . Fabricators . | . . . . . Repair Stations . | . . . . . Recycling Units 1 | . 1 . . . Scanalyzers . | . . . . . Garrison Access . | . . . . . Total Hacks 5 | . 2 . . 3 Successful 4 | . 1 . . 3 Failed 1 | . 1 . . . Catastrophic . | . . . . . Database Lockouts . | . . . . . Manual . | . . . . . Terminals . | . . . . . Fabricators . | . . . . . Repair Stations . | . . . . . Recycling Units 2 | . 2 . . . Scanalyzers . | . . . . . Garrison Access . | . . . . . Terminal Hacks 3 | . . . . 3 Record 3 | . . . . 3 Fabricator Hacks . | . . . . . Repair Station Hacks . | . . . . . Recycling Unit Hacks 1 | . 1 . . . Retrieve Components 1 | . 1 . . . Scanalyzer . | . . . . . Garrison Access Hacks . | . . . . . Unauthorized Hacks . | . . . . . Terminals . | . . . . . Fabricators . | . . . . . Repair Stations . | . . . . . Recycling Units . | . . . . . Scanalyzers . | . . . . . Garrison Access . | . . . . . Data Cores Recovered . | . . . . . Used . | . . . . . Hacking Detections . | . . . . . Full Trace Events . | . . . . . Feedback Events . | . . . . . Feedback Blocked . | . . . . . Robot Schematics Acquired . | . . . . . Robots Built . | . . . . . Authchips . | . . . . . Time . | . . . . . Total Robot Build Rating . | . . . . . Part Schematics Acquired . | . . . . . Parts Built . | . . . . . Authchips . | . . . . . Time . | . . . . . Total Part Build Rating . | . . . . . Part Studies Acquired . | . . . . . Parts Repaired . | . . . . . Time . | . . . . . Parts Recycled . | . . . . . Recycled Matter . | . . . . . Retrieved Matter . | . . . . . Retrieved Components 2 | . 2 . . . Parts Scanalyzed . | . . . . . Part Schematics Acquired . | . . . . . Parts Damaged . | . . . . . Bothacking | -11 -10 -10 -10 -7 ------------ Run | Yrd Mat Min Sub Scr Used RIF Installer . | . . . . . Robots Hacked 34 | . . . . 34 Non-combat 8 | . . . . 8 Combat 26 | . . . . 26 Robot Hacks Applied 38 | . . . . 38 parse_system 38 | . . . . 38 Relay Couplers Released . | . . . . . Fabnet Peak Effective % . | . . . . . Robots Rewired . | . . . . . Allies Hacked . | . . . . . Hacks Repelled . | . . . . . Allies | -11 -10 -10 -10 -7 -------- Run | Yrd Mat Min Sub Scr Total Allies . | . . . . . Largest Group . | . . . . . Highest-Rated Group . | . . . . . Highest-Rated Ally . | . . . . . Total Orders . | . . . . . Ally Attacks . | . . . . . Total Damage . | . . . . . Kills . | . . . . . Allies Corrupted . | . . . . . Allies Melted 4 | . . . . 4 Intel | -11 -10 -10 -10 -7 ------- Run | Yrd Mat Min Sub Scr Active Infowar (turns) 2424 | 29 235 307 216 1637 Seismic 2424 | 29 235 307 216 1637 Robot Analysis Total . | . . . . . Derelict Logs Recovered 4 | . . 3 . 1 Drone Launches . | . . . . . Drone Recoveries . | . . . . . Exploration | -11 -10 -10 -10 -7 ------------- Run | Yrd Mat Min Sub Scr Turns Passed 2635 | 108 235 307 216 1769 Spaces Moved 2406 | 75 194 245 176 1716 Core 4 | 4 . . . . Treads . | . . . . . Legs . | . . . . . Wheels 2402 | 71 194 245 176 1716 Hover . | . . . . . Flight . | . . . . . Fastest Speed 50 | 50 80 95 95 95 Average Speed 94 | 78 93 95 95 95 Slowest Speed 125 | 80 95 95 95 125 Overloaded Moves . | . . . . . Propulsion Burnouts . | . . . . . Robots Hopped . | . . . . . Potential Cave-ins . | . . . . . Cave-ins Triggered . | . . . . . Exploration Rate (%) 41 | 3 34 65 10 93 Regions Visited 4 Branch Regions 3 Pre-discovered Areas 1 | . . 1 . . Known Exits Taken 1 | . . 1 . . Unknown Exits Taken 3 | 1 1 . 1 . Scrap Searched 8 | . . 1 . 7 Spaces Dug 1 | . . 1 . . Terrain Destroyed 77 | . . 1 . 76 Melee 1 | . . 1 . . Projectile . | . . . . . AOE 76 | . . . . 76 Terrain Rammed . | . . . . . Walls Destroyed . | . . . . . Machines Disabled . | . . . . . Actions | -11 -10 -10 -10 -7 --------- Run | Yrd Mat Min Sub Scr Total 2640 | 98 226 284 214 1818 Wait 36 | . . 13 19 4 Move 2402 | 74 193 244 175 1716 Hop . | . . . . . Pick Up 29 | 6 13 1 3 6 Fast Attach 11 | 7 . 1 . 3 Attach 4 | . . . 1 3 Detach . | . . . . . Swap 12 | . 4 3 2 3 Drop 19 | . 5 4 3 7 Fire 81 | 11 11 16 11 32 Melee 46 | . . 2 . 44 Ram . | . . . . . Kick . | . . . . . Crush . | . . . . . Escape Stasis . | . . . . . Rewire . | . . . . . Trap . | . . . . . Miscellaneous . | . . . . . Route ------- -11/Scrapyard -10/Materials (discovered 2 exits: [*Mat] / [*Min]) -10/Mines (discovered 2 exits: [*Mat] / *Sub) -10/Subcaves -7/Scraptown (discovered 2 exits: [*Fac x2]) History --------- Turn | Location | Event 18 | -11/Scrapyard | Discovered new exit (range 16) 109 | -11/Scrapyard | Entered Materials 235 | -10/Materials | Discovered new exit (range 16) 303 | -10/Materials | Build established: Mutant 340 | -10/Materials | Discovered new exit (range 6) 344 | -10/Materials | Entered Mines 424 | -10/Mines | Learned location of Storage (-7) 548 | -10/Mines | Learned Materials terminal intel 599 | -10/Mines | Discovered new exit (range 13) 631 | -10/Mines | Identified exit to Subcaves 632 | -10/Mines | Received a Rocket Launcher from a helpful Derelict 651 | -10/Mines | Entered Subcaves 652 | -10/Subcaves | Approached by a straggling Scientist 836 | -10/Subcaves | Scientist uncovered a shortcut to Scraptown 839 | -10/Subcaves | Shifting Twisted Machinery released Battle Cannon 867 | -10/Subcaves | Entered Scraptown 1033 | -7/Scraptown | Visited Symbiants 1036 | -7/Scraptown | Build established: Scavenger-Mutant 1065 | -7/Scraptown | Visited Red Mages 1316 | -7/Scraptown | Scanned Subdweller tech in exchange for log data 1319 | -7/Scraptown | Learned Research security intel 1330 | -7/Scraptown | Discovered new exit (range 13) 1404 | -7/Scraptown | Visited The Evicted 1412 | -7/Scraptown | Visited Cyclists 1440 | -7/Scraptown | Visited Awakened 1497 | -7/Scraptown | Visited IN-MT5's Study 1514 | -7/Scraptown | Build established: Mutant 1520 | -7/Scraptown | Visited SPCMW 1725 | -7/Scraptown | Visited UFD Registry 1725 | -7/Scraptown | Registered with UFD as "Kinetidome" 1765 | -7/Scraptown | Entered Cyclist Reading Room 1854 | -7/Scraptown | Visited DA-N13 Charitable Foundation 1881 | -7/Scraptown | Found DCF Scrap (27 items) 1903 | -7/Scraptown | Visited Derelict Rescue Squad 1927 | -7/Scraptown | Visited Scrapoid Research Area 1974 | -7/Scraptown | Visited Curators Association 2007 | -7/Scraptown | Visited Chapter 10 2037 | -7/Scraptown | Visited LU-1G1's Boring Crew 2080 | -7/Scraptown | Visited Science Testing Area 2369 | -7/Scraptown | Discovered new exit (range 5) 2431 | -7/Scraptown | Met Optimus 2431 | -7/Scraptown | Accepted into 0bPrime 2494 | -7/Scraptown | Civil war broke out across Scraptown 2567 | -7/Scraptown | Core integrity fell below 50% 2602 | -7/Scraptown | Destroyed 11 combat bots 2606 | -7/Scraptown | Core integrity fell below 20% 2636 | -7/Scraptown | Destroyed by 8G-1F2(j) with Overtuned Pulse Rifle Last Messages --------------- 02607_ V8-7K1(j) cannibalizes Lgt. Deuterium Engine to repair Lgt. Deuterium Engine. 02608_ CJ-U92(x) destroyed. 02610_ V8-7K1(j) destroyed. 02611_ The unstable cave ceiling collapses. 02612_ K-01 Serf destroyed. 02612_ DE-DP6(g) destroyed. 02614_ Acquired 24 matter. 02616_ The unstable cave ceiling collapses. 02617_ Acquired Mak. Spear. 02618_ Lgt. Ion Engine fries itself beyond repair. 02618_ The unstable cave ceiling collapses. 02618_ Ovr. Pulse Rifle crushed. 02619_ The unstable cave ceiling collapses. 02623_ Acquired 13 matter. 02625_ The unstable cave ceiling collapses. 02626_ 64-KP0(j) switches sides: "I don't know who to fight for!" 02626_ The unstable cave ceiling collapses. 02628_ Acquired 74 matter. 02630_ Acquired Ovr. Titanium Leg. Map ----- +----------------------------------------------------+ | | | | | | | | | ?????????????????????????????????????????????????? | | ?###??????????????????######?????????????????????? | | """"??????????????????? ?????????????????????? | | "#??????????????????< ???################### | | "" "#?????#######??????? ??#"""""""""#""""""""" | | "" "#???#"""""""#???????# ??#" "#" " | | "" "#???#"" ""#???????#!=%#?#" """ " | | "#???#"" ""#???????#!%=###" "#" "" " | | """###?#""" ""#???????#[= ##" """ "#" " " | | #?#"" ""#??????# pj ##" "#" " | | ###""" """######## #"""""" ""#"" """""" | | | | | | | | ###### ########### ##########"" """"#### | | ###### ######????## ##????????#" !%"#??? | | #""""" """""#####?# #########?#" /""#??? | | #" " " #?# """"""""#?#" """#??? | | """ ""#" " " "### ### !% ""#?#" """#??? | | """ "#" " " "#"" """ % ! "#?#"""""""#??? | | """ "#""""" """""#" """ =" ""#?#########??? | | "" "###### ######" "@ %""""""""#????????????? | | ? "#""""" """""#" ! ##"""####??????####### | | ?"" ""#" " " "#" % ############## | | ??# ###" " " "#" =[ #??#"""""""## """""" | | ??# " " "#""""" [ ##?" " "## "" " | | ??#####""""" """""######= ! ####" "## " | | #?????###### ########## # " ""## " | | ############ ####### # " """## " | | =% /%%=*! ## " ""## " | | / !=%[! " "## "" " | | ##################### # = "## """""" | | #???????????????????####%=!=% ### | | #######???????????????## ! =# ########### | | """"""#???????##?###### [!== * ! = !! | | "#?????""?"""""""# !% ! = = | | ] ! "#?????"" " "" "# = = | | ] "#??????" " #!%! [= =/ | | ! "#??????" " # !=% * ! | | ! ! "#?????"" " " " # *%# # %=# # | | ! "#????#"" """ "" # ![#### ###### % | | = "#????#" # ############????# | | "#????#" # # """#" X "#????# | | """ ""#????#"" "" """ ## "#????# | | ### ###?????""""""""""# # X##????# | | ### ###???????######### # ## "#????# | +----------------------------------------------------+ Best States ------------- Heat Dissipation 25 Energy Generation 14 Energy Capacity 280 Matter Stores 300 Matter Capacity 300 Sight Range 16 Terrain Scan Density 10 Armor Coverage 225 Evasion (%) 44 Item Schematics ----------------- None Robot Schematics ------------------ None Fabricated ------------ Nothing Repaired ---------- Nothing Studied --------- None Alien Tech Used ----------------- None Achievements -------------- None Challenges ------------ None Game ------ Seed PhaseCountertargetingMapper Manual? 0 Play Time 00:35:32 Cumulative 92.1 hours Start 2026.01.22 @ 22:44:11 End 2026.01.24 @ 14:23:45 Sessions 10 Manual Loads 0 Difficulty Rogue Special Mode None Game No. 38 Rogue 38 Adventurer 0 Explorer 0 Win Type - Total 3 Types 2/0/1/0/0/0/0/0/0/0 Lore% 48 Gallery% 53 Achievement% 44 Wizard Run 0 Options --------- Layout 0 ASCII 0 Keyboard 1 Movement Arrows Keybinds 0 Fullscreen 1 Font 18/SmallcapsGlow Map View 76x50 Zoom Use 0% Tactical HUD 1 Map Filters NONE Filters NONE Steam 1 RUN: 431e8b89-c6e0-4466-a53a-b76353a9465b